bitfinex-derivatives/quotes_ETHF0:USTF0_20240925
["timestamp","ask_amount","ask_price","bid_price","bid_amount"]
[1727245162703,0.38201,2617.6,2617.5,20.6474]
[1727245162887,3.2078,2617.7,2617.5,20.6474]
[1727245162888,3.5898,2617.7,2617.5,20.6474]
[1727245163090,3.2078,2617.7,2617.5,0.5474]
[1727245163290,3.58979,2617.7,2617.6,0.5847]
[1727245163994,3.58979,2617.7,2617.4,0.5308]
[1727245163995,0.38202,2617.5,2617.4,0.5308]
[1727245164219,2.76202,2617.5,2617.4,0.5308]
[1727245164499,0.38204,2617.4,2617.1,0.96677]
[1727245164896,2.38,2617.2,2617.1,0.5847]
[1727245165100,2.76206,2617.2,2617.1,0.5847]
[1727245165696,2.38,2617.2,2617.1,0.5847]
[1727245166200,2.76206,2617.2,2617.1,0.5847]
[1727245166594,2.38,2617.2,2617.1,0.5847]
[1727245166795,0.98835838,2617.6,2617.1,10.4055]
[1727245166991,5.18685081,2617.8,2617.1,10.4055]
[1727245166992,0.38203,2617.5,2617.1,0.5847]
[1727245167197,4.19615838,2617.8,2617.2,4.00445984]
[1727245167404,2.38,2617.5,2617.2,4.00445984]
[1727245167595,2.38,2617.5,2617.1,0.5847]
[1727245168101,5.5878,2617.5,2617.1,0.5847]
[1727245168304,0.38206,2617.2,2617.1,0.5847]
[1727245168493,0.38206,2617.3,2617.1,0.5847]
[1727245168694,0.38206,2617.2,2617.1,0.5847]
[1727245169204,5.5878,2617.2,2616.5,0.99882729]
[1727245169394,0.38208,2617.1,2616.9,0.97091]
[1727245169588,0.38208,2617.1,2616.9,0.5888]
[1727245169888,0.38209,2617.0,2616.9,0.5888]
[1727245172205,2.76209,2617.0,2616.9,0.5888]
[1727245175501,0.38209,2617.0,2616.9,0.5888]
[1727245175805,0.38208,2617.1,2616.9,0.5888]
[1727245176009,3.2078,2617.2,2616.9,0.9709]
[1727245176506,3.58987,2617.2,2616.9,0.9709]
[1727245176706,0.38209,2617.1,2616.9,0.5888]
[1727245177111,0.38209,2617.0,2616.9,0.5888]
[1727245180601,2.0707881,2617.4,2616.9,0.5888]
[1727245180602,0.6461,2618.1,2616.9,0.5888]
[1727245180826,3.2078,2618.8,2617.8,0.99648219]
[1727245181011,2.38,2618.6,2617.7,4.20428219]
[1727245181216,0.6461,2618.7,2617.7,4.20428219]
[1727245181217,0.38194,2618.1,2617.9,7.99397145]
[1727245181408,2.38,2618.3,2617.7,3.2078]
[1727245181409,0.38192,2618.2,2617.7,3.2078]
[1727245181610,0.38194,2618.1,2617.7,3.2078]
[1727245182516,2.76198,2617.8,2617.3,0.99648219]
[1727245182719,0.6334,2617.7,2617.4,0.38203]
[1727245183015,0.6334,2617.7,2617.3,0.38204]
[1727245183516,0.6334,2617.7,2617.3,0.99648219]
[1727245184017,0.6334,2617.7,2617.4,0.98222]
[1727245185314,0.6334,2617.7,2617.4,0.6002]
[1727245186013,0.6334,2617.7,2617.4,0.98223]
[1727245186611,0.6334,2617.7,2617.5,0.38201]
[1727245186914,0.6334,2617.7,2617.4,0.98223]
[1727245187422,0.6334,2617.7,2617.5,0.38201]
[1727245187713,0.6334,2617.7,2617.4,0.98223]
[1727245188118,0.6334,2617.7,2617.4,0.6002]
[1727245188512,0.6334,2617.7,2617.5,0.38201]
[1727245188915,0.6334,2617.7,2617.4,0.98223]
[1727245189824,0.6334,2617.7,2617.5,0.38202]
[1727245190422,0.6334,2617.7,2617.5,0.38201]
[1727245192417,0.6334,2617.7,2617.4,0.6002]
[1727245192922,0.6334,2617.7,2617.6,0.38201]
[1727245193319,5.5878,2618.1,2617.4,0.6002]
[1727245193622,2.38,2618.1,2617.7,0.38199]
[1727245196318,2.38,2618.1,2617.8,0.38197]
[1727245196519,6.2,2618.1,2617.7,1.00628]
[1727245196722,2.38,2618.1,2617.7,1.00628]
[1727245197924,2.38,2618.1,2617.7,0.6243]
[1727245198926,2.38,2618.1,2617.7,1.00628]
[1727245199418,2.38,2618.1,2617.7,0.6243]
[1727245199728,2.38,2618.1,2617.7,1.00628]
[1727245200123,2.76193,2618.1,2617.7,1.00628]
[1727245200428,3.33491,2617.9,2617.2,1.37854219]
[1727245200620,2.38,2617.5,2617.1,1.96295219]
[1727245200815,2.38,2617.5,2617.2,0.97934465]
[1727245201018,24.9,2617.4,2617.2,0.38206]
[1727245201416,24.9,2617.4,2617.3,0.38205]
[1727245202019,24.9,2617.4,2617.2,0.38206]
[1727245202427,3.2078,2617.7,2617.1,1.96295219]
[1727245202628,2.76203,2617.5,2617.1,1.58088219]
[1727245202933,27.66203,2617.5,2617.1,1.96295219]
[1727245203534,0.38204,2617.4,2617.1,1.96295219]
[1727245203827,27.66203,2617.5,2617.1,1.96295219]
[1727245204024,27.66203,2617.5,2617.2,0.38206]
[1727245204225,27.66203,2617.5,2617.1,1.96295219]
[1727245204420,27.66203,2617.5,2617.2,0.38206]
[1727245205018,27.66203,2617.5,2617.1,1.96295219]
[1727245206125,27.28,2617.5,2617.1,1.96295219]
[1727245206328,0.38204,2617.4,2617.1,1.96295219]
[1727245206531,0.38204,2617.4,2617.1,0.96647]
[1727245206724,0.6024,2617.3,2617.1,0.96647]
[1727245207029,0.6024,2617.3,2617.2,0.38206]
[1727245207818,0.38201,2617.6,2617.4,0.38203]
[1727245208018,0.98441,2617.6,2617.3,0.38204]
[1727245208634,0.38202,2617.5,2617.2,0.38206]
[1727245209019,0.38204,2617.4,2617.1,1.96295219]
[1727245209218,0.38204,2617.4,2617.1,0.96647]
[1727245210438,0.38204,2617.4,2617.2,0.38206]
[1727245211539,2.9824,2617.6,2617.1,0.5844]
[1727245211540,0.38206,2617.3,2617.1,0.5844]
[1727245211720,2.9824,2617.6,2616.9,3.8243]
[1727245211721,2.38,2617.2,2616.9,3.8243]
[1727245211921,0.38208,2617.1,2616.9,3.8243]
[1727245212129,0.5856,2617.1,2616.9,4.2064]
[1727245212724,0.96768,2617.1,2616.9,3.8243]
[1727245212935,0.5856,2617.1,2616.9,3.8243]
[1727245214030,0.38209,2617.0,2616.9,3.8243]
[1727245214232,6.58369,2617.0,2616.9,3.2078]
[1727245214528,6.58369,2617.0,2616.5,4.20428219]
[1727245214529,13.15684,2617.0,2616.5,4.20428219]
[1727245214736,0.38215,2616.6,2616.5,3.2078]
[1727245215033,0.38213,2616.8,2616.6,0.38215]
[1727245215221,0.95524,2617.0,2616.5,3.2078]
[1727245215222,2.38,2616.7,2616.5,3.2078]
[1727245215428,0.38215,2616.6,2616.5,3.2078]
[1727245215629,1.02025,2616.6,2616.5,3.2078]
[1727245216528,4.84185,2616.6,2616.5,3.2078]
[1727245216736,0.38217,2616.5,2616.1,0.99648219]
[1727245216931,0.38217,2616.5,2616.3,0.99149]
[1727245217126,0.6381,2616.6,2616.3,0.38218]
[1727245217324,0.38217,2616.5,2616.3,0.38219]
[1727245217524,1.02026,2616.6,2616.3,0.38219]
[1727245217730,0.38217,2616.5,2616.3,0.38219]
[1727245217942,1.02026,2616.6,2616.3,0.38219]
[1727245218131,0.6381,2616.6,2616.1,0.38222]
[1727245218334,0.6381,2616.6,2616.0,1.60578219]
[1727245218335,0.3822,2616.3,2616.0,1.60578219]
[1727245218540,0.3822,2616.3,2616.0,0.99153]
[1727245218836,0.38221,2616.2,2616.0,0.99153]
[1727245219086,0.38221,2616.2,2616.0,0.6093]
[1727245219231,0.9555,2616.3,2616.0,0.6093]
[1727245219427,0.95557,2616.1,2615.6,0.99648219]
[1727245219629,2.38,2616.0,2615.5,4.58659219]
[1727245219833,0.38231,2615.5,2615.4,0.99648219]
[1727245220035,0.38231,2615.5,2615.3,0.99852044]
[1727245220036,0.38233,2615.4,2615.3,0.99852044]
[1727245220231,0.98313,2615.4,2615.3,0.99852044]
[1727245220430,12.804,2615.4,2615.0,0.47605401]
[1727245220636,3.8399,2615.3,2615.0,0.47605401]
[1727245220835,3.59016,2615.2,2615.0,0.47605401]
[1727245221040,13.0318,2615.2,2615.0,0.47605401]
[1727245221345,6.58637,2615.1,2615.0,0.47605401]
[1727245222037,2.38,2615.1,2615.0,0.47605401]
[1727245222234,3.2078,2615.2,2615.0,0.47605401]
[1727245222425,2.38,2615.4,2615.1,0.38236]
[1727245222658,2.76234,2615.4,2615.0,1.06955401]
[1727245222832,4.20635,2615.3,2615.0,1.06955401]
[1727245223037,4.20635,2615.3,2615.0,0.47605401]
[1727245223237,3.824,2615.2,2615.0,0.47605401]
[1727245223446,2.76233,2615.4,2615.0,0.85843401]
[1727245223747,2.76233,2615.4,2615.0,0.47605401]
[1727245225134,2.76233,2615.4,2615.0,0.85843401]
[1727245225639,4.20633,2615.4,2615.0,0.47605401]
[1727245225840,2.38,2615.3,2615.0,0.47605401]
[1727245226048,2.38,2615.3,2615.0,0.38238]
[1727245226337,2.38,2615.3,2614.7,0.6143]
[1727245226750,2.76235,2615.3,2614.9,0.3824]
[1727245228036,2.38,2615.3,2614.7,0.6143]
[1727245228239,2.38,2615.3,2615.0,0.38238]
[1727245228436,2.76234,2615.3,2614.9,0.38239]
[1727245228941,2.76234,2615.3,2614.7,0.6143]
[1727245228942,2.38,2615.3,2615.0,0.38238]
[1727245229247,0.38233,2615.4,2615.1,0.6242]
[1727245229440,0.38233,2615.4,2615.2,0.5912]
[1727245230440,5.97012,2615.5,2615.2,0.5912]
[1727245230648,3.2078,2615.5,2615.3,0.38233]
[1727245230849,2.38,2615.4,2615.2,0.5912]
[1727245231149,2.38,2615.4,2615.2,0.97355]
[1727245231351,4.109,2616.0,2615.3,3.824]
[1727245231548,0.38226,2615.9,2615.6,0.38229]
[1727245231754,0.38227,2615.8,2615.7,1.228]
[1727245232054,6.489,2616.0,2615.7,1.228]
[1727245232055,0.38226,2615.9,2615.7,1.228]
[1727245232353,6.87125,2616.0,2615.7,1.61028]
[1727245232557,0.38225,2615.9,2615.7,1.61028]
[1727245232849,2.76225,2616.0,2615.7,1.61028]
[1727245233084,3.59002,2616.2,2615.7,1.228]
[1727245233255,0.38221,2616.2,2615.9,0.38224]
[1727245233548,0.38222,2616.2,2615.9,0.38224]
[1727245233953,5.5878,2616.0,2615.7,1.228]
[1727245234154,2.76227,2615.8,2615.7,0.6352]
[1727245234349,3.71795,2615.8,2615.7,0.6352]
[1727245234546,3.71795,2615.8,2615.3,0.6129]
[1727245234547,13.15888,2615.8,2615.3,0.6129]
[1727245234746,3.2078,2615.7,2615.3,1.01364]
[1727245234961,3.2078,2615.7,2615.3,0.6313]
[1727245234962,0.38232,2615.5,2615.3,0.6313]
[1727245235558,0.38232,2615.5,2615.3,1.01364]
[1727245235758,0.3823,2615.6,2615.4,0.38233]
[1727245236052,0.3823,2615.6,2615.3,1.01363]
[1727245236253,3.2078,2616.0,2615.6,0.3823]
[1727245236460,3.2078,2616.0,2615.7,0.6454]
[1727245236645,0.38226,2615.9,2615.7,0.6454]
[1727245236872,3.2078,2616.0,2615.8,0.38227]
[1727245237063,3.59004,2616.0,2615.9,0.5893]
[1727245238357,3.2078,2616.0,2615.9,0.97155]
[1727245238557,3.2078,2616.5,2615.9,0.5893]
[1727245238763,3.2078,2616.5,2615.9,3.7971]
[1727245239057,4.109,2616.8,2616.3,3.2078]
[1727245239251,3.2078,2616.9,2616.4,3.0042]
[1727245239450,5.96986,2617.3,2616.9,0.3821]
[1727245239653,0.38206,2617.2,2617.0,0.6242]
[1727245239874,0.38206,2617.2,2617.0,1.2452]
[1727245240050,0.38208,2617.1,2617.0,1.2452]
[1727245240257,2.76208,2617.1,2617.0,0.621]
[1727245240461,10.20288,2617.1,2617.0,0.621]
[1727245241250,9.8208,2617.1,2616.6,0.6242]
[1727245241450,0.95517,2617.2,2616.6,1.2452]
[1727245241451,0.38213,2616.8,2616.6,1.2452]
[1727245241650,3.2078,2617.3,2616.6,1.2452]
[1727245241857,3.2078,2617.3,2616.9,0.3821]
[1727245242161,0.38208,2617.2,2616.8,0.38211]
[1727245242358,0.38208,2617.1,2616.8,0.38211]
[1727245242748,0.38208,2617.1,2616.7,3.2078]
[1727245242749,0.38209,2617.0,2616.7,3.58993]
[1727245243260,0.38211,2616.9,2616.6,1.62734]
[1727245243560,3.2078,2617.0,2616.6,1.2452]
[1727245243759,0.38213,2616.8,2616.6,1.2452]
[1727245244750,0.38211,2616.9,2616.6,1.2452]
[1727245244962,0.38213,2616.8,2616.6,1.2452]
[1727245245858,4.20374,2616.7,2616.6,1.2452]
[1727245246160,0.38214,2616.7,2616.6,1.2452]
[1727245246348,4.20374,2616.7,2616.6,1.2452]
[1727245247460,0.38214,2616.7,2616.6,1.2452]
[1727245248062,0.38213,2616.8,2616.6,1.2452]
[1727245248364,0.38211,2616.9,2616.6,1.2452]
[1727245248661,3.5899,2617.0,2616.7,0.38213]
[1727245248860,3.5899,2617.0,2616.6,1.2452]
[1727245249060,3.5899,2617.0,2616.7,0.98433]
[1727245249652,0.38212,2616.8,2616.7,0.6022]
[1727245249877,0.38211,2616.9,2616.6,1.62734]
[1727245250048,3.2078,2617.0,2616.6,1.2452]
[1727245250263,0.38213,2616.8,2616.6,1.2452]
[1727245251053,0.38214,2616.7,2616.6,1.2452]
[1727245252453,3.2078,2617.0,2616.6,1.2452]
[1727245252653,0.38214,2616.7,2616.6,1.2452]
[1727245253048,4.20374,2616.7,2616.6,1.2452]
[1727245254056,7.41154,2616.7,2616.6,1.2452]
[1727245254966,4.20374,2616.7,2616.6,1.2452]
[1727245256368,0.38214,2616.7,2616.6,1.2452]
[1727245256757,4.20374,2616.7,2616.6,1.2452]
[1727245257863,0.38214,2616.7,2616.6,1.2452]
[1727245258761,9.8216,2616.7,2616.2,3.2078]
[1727245258963,0.95534,2616.8,2616.3,1.1891]
[1727245258964,0.38219,2616.4,2616.3,1.1891]
[1727245259261,0.38227,2615.8,2615.7,1.1891]
[1727245259463,3.59007,2615.8,2615.7,1.1891]
[1727245260664,4.16333,2616.2,2615.7,1.1891]
[1727245260861,0.38226,2615.9,2615.7,1.1891]
[1727245261261,3.2078,2616.2,2615.7,1.1891]
[1727245261469,0.38219,2616.4,2616.1,0.38222]
[1727245261660,0.38219,2616.4,2615.8,8.08479502]
[1727245261863,0.1956,2616.6,2615.8,8.08479502]
[1727245262065,0.38219,2616.4,2616.1,0.38221]
[1727245262672,0.1956,2616.6,2616.2,0.38221]
[1727245262872,0.38219,2616.4,2616.1,0.38222]
[1727245263065,0.38219,2616.4,2616.2,0.6267]
[1727245263975,0.38219,2616.4,2616.3,1.2611]
[1727245264462,0.38219,2616.4,2615.5,5.6868]
[1727245264463,6.2124,2616.4,2615.5,5.6868]
[1727245264670,0.38223,2616.1,2615.8,0.38226]
[1727245264880,0.38224,2616.0,2615.8,7.97001249]
[1727245265066,0.38224,2616.0,2615.8,11.56007249]
[1727245265264,0.38224,2616.0,2615.8,3.2078]
[1727245265677,0.38224,2616.0,2615.7,0.38227]
[1727245265879,2.39,2616.2,2615.8,3.2078]
[1727245266199,0.38224,2616.0,2615.8,7.91132408]
[1727245266370,0.38224,2616.0,2615.8,0.38227]
[1727245266768,0.95553,2616.3,2615.6,1.8568]
[1727245266971,0.38228,2615.8,2615.6,1.8568]
[1727245267271,0.38228,2615.7,2615.6,1.2611]
[1727245267466,4.16351,2615.7,2615.2,0.5901]
[1727245267678,0.38232,2615.5,2615.3,0.6182]
[1727245267863,0.38233,2615.4,2615.3,0.6182]
[1727245268365,4.16351,2615.7,2615.3,0.6182]
[1727245268569,0.38233,2615.4,2615.3,0.6182]
[1727245270078,0.38231,2615.6,2615.3,1.00053]
[1727245270268,0.38232,2615.5,2615.3,0.6182]
[1727245270473,3.2078,2615.7,2615.3,1.00054]
[1727245270474,0.38231,2615.6,2615.3,1.00054]
[1727245270772,0.38231,2615.5,2615.3,1.00054]
[1727245271675,0.38231,2615.6,2615.4,0.38233]
[1727245271871,0.38231,2615.6,2615.5,0.5892]
[1727245277476,0.38233,2615.4,2615.3,0.6182]
[1727245277682,3.2078,2615.7,2615.3,0.6182]
[1727245277893,0.38233,2615.4,2615.3,0.6182]
[1727245279082,0.38232,2615.5,2615.3,0.6182]
[1727245279384,0.38233,2615.4,2615.3,0.6182]
[1727245284287,0.95577,2615.6,2615.0,3.2078]
[1727245284492,3.59009,2615.7,2615.2,0.6417]
[1727245284678,3.2078,2615.7,2615.2,0.6417]
[1727245284988,3.59009,2615.7,2615.4,0.38232]
[1727245285384,3.59009,2615.7,2615.5,0.38231]
[1727245285579,3.59009,2615.7,2615.6,1.2342]
[1727245286887,3.2078,2615.7,2615.6,1.6165]
[1727245288079,0.38225,2616.0,2615.8,0.38226]
[1727245288286,0.38223,2616.1,2615.9,0.97295]
[1727245288680,3.2078,2616.2,2616.0,0.38224]
[1727245288681,3.59002,2616.2,2616.0,0.38224]
[1727245288883,3.59002,2616.2,2616.1,0.5854]
[1727245290796,3.59002,2616.2,2616.1,1.203]
[1727245290984,3.2078,2616.6,2616.3,0.38219]
[1727245291182,3.2078,2616.6,2616.4,0.6023]
[1727245291390,0.38217,2616.5,2616.4,0.6023]
[1727245293988,0.95546,2616.4,2615.5,0.089]
[1727245294186,0.95546,2616.4,2615.4,0.99648219]
[1727245294187,2.77225,2616.0,2615.9,0.6181]
[1727245298288,0.38225,2616.0,2615.9,0.6181]
[1727245299093,3.59003,2616.1,2615.9,0.6181]
[1727245299293,0.38223,2616.1,2615.9,0.6181]
[1727245299591,1.47505996,2616.6,2616.3,0.38218]
[1727245299791,0.38216,2616.6,2616.4,1.1763]
[1727245299989,0.38216,2616.6,2616.4,1.8158]
[1727245300590,3.58994,2616.7,2616.4,2.19797]
[1727245300791,3.58995,2616.7,2616.4,2.19797]
[1727245301086,0.38215,2616.6,2616.4,1.8158]
[1727245301789,0.38215,2616.6,2616.4,2.19798]
[1727245302889,0.38215,2616.6,2616.4,1.8158]
[1727245303085,3.86505996,2616.9,2616.4,1.8158]
[1727245303393,0.38216,2616.6,2616.4,1.8158]
[1727245304391,0.38216,2616.6,2616.4,2.19798]
[1727245304689,0.38216,2616.6,2616.4,1.8158]
[1727245306796,0.38217,2616.5,2616.4,1.8158]
[1727245308604,0.38216,2616.6,2616.4,2.19797]
[1727245308896,3.58994,2616.7,2616.5,0.38217]
[1727245309299,3.58994,2616.7,2616.4,1.8158]
[1727245309889,3.58994,2616.7,2616.5,0.38216]
[1727245310497,3.2078,2616.7,2616.4,1.8158]
[1727245310700,3.2078,2616.7,2616.4,2.19797]
[1727245310894,3.58994,2616.7,2616.5,0.38216]
[1727245311092,0.38215,2616.6,2616.4,2.19797]
[1727245311498,0.38215,2616.6,2616.5,3.8216]
[1727245311699,0.38215,2616.6,2616.4,2.19797]
[1727245312199,0.38215,2616.6,2615.9,0.95562]
[1727245312200,0.38228,2615.7,2615.6,0.089]
[1727245312402,0.38228,2615.7,2614.9,0.99648219]
[1727245312403,0.95575,2615.6,2614.9,0.99648219]
[1727245312606,5.5978,2615.4,2614.6,1.436]
[1727245312908,3.83317062,2615.6,2614.6,1.436]
[1727245312909,3.2078,2615.0,2614.6,1.436]
[1727245313200,2.77243,2614.8,2614.6,8.12126865]
[1727245313405,2.39,2614.8,2614.5,3.2078]
[1727245313605,2.39,2614.8,2614.0,1.525]
[1727245313606,0.38242,2614.8,2614.0,1.525]
[1727245313803,3.2078,2614.9,2614.2,0.3825]
[1727245314002,3.2078,2614.9,2614.5,2.77246]
[1727245314206,3.2078,2614.9,2614.6,2.2439]
[1727245314400,3.2078,2614.9,2614.6,10.35143741]
[1727245314600,3.2078,2614.9,2614.6,2.2439]
[1727245315196,0.38237,2615.1,2614.7,3.8248]
[1727245315517,2.77236,2615.2,2614.6,2.2439]
[1727245316004,3.2078,2615.3,2614.7,10.5392803]
[1727245316206,3.59015,2615.3,2614.7,8.1492803]
[1727245316609,0.38236,2615.2,2614.7,8.1492803]
[1727245317410,3.2078,2615.3,2614.7,8.1492803]
[1727245318599,0.38236,2615.2,2614.7,8.1492803]
[1727245318805,3.59015,2615.3,2614.7,8.1492803]
[1727245319098,3.2078,2615.3,2614.7,8.5317003]
[1727245319500,3.2078,2615.3,2614.7,8.1492803]
[1727245319705,3.2078,2615.3,2614.8,0.38241]
[1727245320402,3.59014,2615.3,2614.8,0.38241]
[1727245320603,3.59014,2615.3,2614.7,8.1492803]
[1727245320803,3.59014,2615.3,2614.8,0.3824]
[1727245321225,3.2078,2615.3,2614.8,0.3824]
[1727245321407,0.38236,2615.2,2614.7,8.5317003]
[1727245321623,3.59015,2615.3,2614.8,0.38241]
[1727245322000,0.38236,2615.2,2614.7,8.5317003]
[1727245322414,3.2078,2615.3,2614.7,8.1492803]
[1727245322415,0.38238,2615.1,2614.7,8.1492803]
[1727245322716,0.3824,2615.0,2614.7,8.1492803]
[1727245323722,3.2078,2615.3,2614.7,8.1492803]
[1727245323907,2.39,2615.2,2614.7,8.1492803]
[1727245324407,0.38242,2614.8,2614.6,1.436]
[1727245324607,2.39,2615.2,2614.6,1.436]
[1727245324839,0.38241,2614.9,2614.6,1.436]
[1727245325714,3.3459,2615.2,2614.6,1.436]
[1727245326607,0.3824,2614.9,2614.6,1.436]
[1727245327423,0.38239,2615.0,2614.6,1.81844]
[1727245327604,0.38238,2615.1,2614.6,4.20843]
[1727245327807,0.3824,2615.0,2614.6,3.826]
[1727245328017,0.3824,2615.0,2614.6,4.20844]
[1727245328715,3.2078,2615.0,2614.6,1.436]
[1727245328918,0.38241,2614.9,2614.6,1.436]
[1727245329216,0.7437,2615.5,2614.6,1.436]
[1727245329217,0.38237,2615.1,2614.7,0.38243]
[1727245329713,0.38237,2615.1,2614.8,0.38241]
[1727245329920,3.2078,2615.3,2614.7,0.38242]
[1727245330114,0.38239,2615.0,2614.7,0.38242]
[1727245330511,0.3824,2614.9,2614.6,3.826]
[1727245330706,0.38239,2615.0,2614.6,3.826]
[1727245331019,0.38239,2615.0,2614.7,0.38243]
[1727245331216,0.38239,2615.0,2614.6,4.20844]
[1727245331421,4.16367,2615.3,2614.6,4.20844]
[1727245331713,0.38238,2615.1,2614.8,0.38241]
[1727245331913,0.38238,2615.1,2614.6,3.826]
[1727245332114,3.2078,2615.3,2614.8,0.38241]
[1727245332308,0.38238,2615.1,2614.9,0.7567]
[1727245332505,3.2078,2615.3,2615.2,0.38236]
[1727245332708,1.557,2616.0,2615.2,5.5978]
[1727245332914,0.3823,2615.6,2615.3,5.09114]
[1727245333319,0.3823,2615.6,2615.4,0.38233]
[1727245333921,0.38225,2615.9,2615.6,0.38229]
[1727245334216,4.16341,2616.0,2615.4,2.77232]
[1727245334411,0.3823,2615.6,2615.4,0.38232]
[1727245334717,4.16341,2616.0,2615.5,0.38231]
[1727245334718,0.38229,2615.7,2615.5,0.38231]
[1727245334906,4.16341,2616.0,2615.4,0.38232]
[1727245335113,1.5514,2616.4,2615.3,0.7432]
[1727245335114,3.2078,2615.7,2615.3,0.7432]
[1727245335407,0.38232,2615.5,2615.3,0.7432]
[1727245335617,0.3823,2615.6,2615.3,1.12553]
[1727245335816,0.38233,2615.4,2615.3,0.7432]
[1727245336706,3.2078,2615.4,2615.0,0.7578]
[1727245336907,0.38239,2615.0,2614.9,1.5039]
[1727245337119,0.38239,2615.0,2614.9,5.3279]
[1727245337616,0.38239,2615.0,2614.9,1.5039]
[1727245337818,3.9512,2615.4,2614.9,1.5039]
[1727245338212,0.38238,2615.1,2614.9,1.5039]
[1727245339018,0.38239,2615.0,2614.9,1.5039]
[1727245339215,0.95586,2615.3,2614.9,1.5039]
[1727245339415,0.38239,2615.0,2614.9,0.7472]
[1727245340520,0.9559,2615.2,2614.6,2.77244]
[1727245340817,0.38241,2614.9,2614.8,8.17724579]
[1727245341215,3.2078,2615.0,2614.5,5.11495]
[1727245341417,0.38242,2614.8,2614.6,0.38244]
[1727245341712,0.38242,2614.8,2614.7,8.17724579]
[1727245341918,0.38242,2614.8,2614.6,8.55968579]
[1727245342117,0.38242,2614.8,2614.6,0.38244]
[1727245342318,0.38242,2614.8,2614.7,7.9678756]
[1727245342722,0.3824,2614.9,2614.7,7.9678756]
[1727245343016,0.38239,2615.0,2614.8,0.38241]
[1727245343219,0.38239,2615.0,2614.9,0.815]
[1727245343419,3.59019,2615.0,2614.9,0.815]
[1727245344813,0.38238,2615.1,2614.9,0.815]
[1727245345018,3.2078,2615.3,2614.9,1.19739]
[1727245345219,0.38238,2615.1,2614.9,1.19739]
[1727245345717,3.2078,2615.3,2614.9,0.815]
[1727245345718,0.38239,2615.0,2614.9,0.815]
[1727245345919,3.2078,2615.3,2614.9,0.815]
[1727245346115,0.38236,2615.2,2615.0,0.38238]
[1727245346423,0.38235,2615.3,2615.1,0.38237]
[1727245346729,0.38236,2615.2,2614.9,0.815]
[1727245346940,0.38236,2615.2,2615.1,0.38237]
[1727245347121,0.38236,2615.2,2615.0,0.38238]
[1727245347528,0.38235,2615.3,2614.9,0.815]
[1727245348024,0.38235,2615.3,2615.1,0.38236]
[1727245348218,0.95581,2615.5,2615.1,0.38236]
[1727245348626,0.38235,2615.3,2615.1,0.38236]
[1727245348826,0.38236,2615.2,2614.9,0.815]
[1727245349123,0.38235,2615.3,2615.1,0.38237]
[1727245350025,0.38236,2615.2,2614.9,0.815]
[1727245350224,0.38235,2615.3,2615.1,0.38237]
[1727245350618,3.2078,2615.6,2615.5,0.38231]
[1727245351126,3.2078,2615.6,2615.4,0.38233]
[1727245351127,3.5901,2615.6,2615.4,0.38233]
[1727245351430,3.5901,2615.6,2615.3,0.7532]
[1727245351431,3.2078,2615.6,2615.3,0.7532]
[1727245351726,3.5901,2615.6,2615.3,0.7532]
[1727245351925,3.5901,2615.6,2615.4,0.38232]
[1727245352518,3.2078,2615.6,2615.4,0.38232]
[1727245352825,3.2078,2615.6,2615.3,0.7532]
[1727245352826,0.38231,2615.5,2615.3,1.13553]
[1727245353328,0.38231,2615.5,2615.3,4.95873]
[1727245353729,0.38231,2615.6,2615.4,4.20553]
[1727245353921,0.38231,2615.6,2615.5,0.8056]
[1727245355722,0.38231,2615.6,2615.4,0.38232]
[1727245356031,0.38231,2615.6,2615.4,1.15602]
[1727245356330,0.38231,2615.5,2615.4,0.7737]
[1727245356526,4.68972062,2615.8,2615.4,3.1637]
[1727245356721,4.68972062,2615.8,2615.6,0.38229]
[1727245356722,0.38228,2615.8,2615.6,0.38229]
[1727245356917,6.45791062,2616.1,2615.6,3.8232]
[1727245357191,0.38226,2615.9,2615.7,0.38228]
[1727245357524,0.38227,2615.8,2615.6,0.38229]
[1727245358024,0.38225,2615.9,2615.4,1.77018219]
[1727245358231,0.38225,2615.9,2615.7,0.38228]
[1727245358421,1.86417062,2616.0,2615.8,0.38227]
[1727245358929,0.38224,2616.0,2615.9,0.7972]
[1727245359529,3.2078,2616.1,2615.9,1.17944]
[1727245360028,3.59002,2616.1,2616.0,0.7912]
[1727245360217,0.38224,2616.0,2615.9,0.7972]
[1727245360923,3.2078,2616.1,2615.6,0.7912]
[1727245360924,0.38226,2615.9,2615.6,0.7912]
[1727245361131,0.38228,2615.8,2615.6,1.5568]
[1727245361330,3.59007,2615.8,2615.7,8.14476751]
[1727245361532,7.07972062,2615.8,2615.3,0.7532]
[1727245361829,0.38233,2615.4,2615.2,0.7656]
[1727245362022,3.2078,2615.5,2615.2,0.7656]
[1727245362231,0.38234,2615.3,2614.9,1.8976]
[1727245362533,2.25992062,2615.4,2615.2,7.90486589]
[1727245362732,4.68972062,2615.5,2615.2,7.90486589]
[1727245362925,1.48192062,2615.6,2615.3,0.38234]
[1727245363141,1.86421062,2615.7,2615.4,0.7656]
[1727245363427,0.38228,2615.7,2615.4,1.5519]
[1727245364222,0.38228,2615.7,2615.4,2.3015]
[1727245365132,0.38229,2615.7,2615.4,2.3015]
[1727245365327,5.46772062,2615.8,2615.4,2.3015]
[1727245365638,3.59012,2615.5,2615.1,0.38236]
[1727245365928,3.59012,2615.5,2615.2,1.17416]
[1727245366134,3.59012,2615.5,2615.2,9.21783125]